[Event "*** Titled Tuesday Blitz"]
[Site "Chess.com"]
[Date "2020.10.20"]
[Round "7"]
[White "kidagent"]
[Black "TurboSteen"]
[Result "1-0"]
[WhiteElo "2290"]
[BlackElo "2042"]
[TimeControl "180+1"]
[EndTime "11:16:44 PDT"]
[Termination "kidagent won by resignation"]

1. e4 {[%clk 0:03:00.9]} 1... e6 {[%clk 0:02:58.4]} 2. d4 {[%clk 0:03:00.3]}
2... d5 {[%clk 0:02:57.3]} 3. Nc3 {[%clk 0:03:00.7]} 3... Bb4 {[%clk 0:02:55.7]}
4. e5 {[%clk 0:03:01]} 4... c5 {[%clk 0:02:54.8]} 5. a3 {[%clk 0:02:59.8]} 5...
Bxc3+ {[%clk 0:02:55]} 6. bxc3 {[%clk 0:03:00]} 6... Ne7 {[%clk 0:02:54.5]} 7.
Qg4 {[%clk 0:02:58.1]} 7... Qc7 {[%clk 0:02:52.7]} 8. Qxg7 {[%clk 0:02:53.9]}
8... Rg8 {[%clk 0:02:53]} 9. Qxh7 {[%clk 0:02:54.3]} 9... cxd4 {[%clk
0:02:53.2]} 10. Ne2 {[%clk 0:02:50]} 10... dxc3 {[%clk 0:02:52.8]} 11. h4 {[%clk
0:02:48.8]} 11... Nbc6 {[%clk 0:02:52.4]} 12. Bf4 {[%clk 0:02:40.2]} 12... Bd7
{[%clk 0:02:51.3]} 13. Rh3 {[%clk 0:02:35.9]} 13... d4 {[%clk 0:02:48.6]} 14.
Qe4 {[%clk 0:02:32.5]} 14... Ng6 {[%clk 0:02:34.1]} 15. Nxd4 {[%clk 0:02:27]}
15... Nxf4 {[%clk 0:02:32.7]} 16. Qxf4 {[%clk 0:02:25.4]} 16... Nxe5 {[%clk
0:02:23.9]} 17. Qe3 {[%clk 0:02:14.3]} 17... Nc6 {[%clk 0:02:14.5]} 18. Nb5
{[%clk 0:01:59.5]} 18... Qa5 {[%clk 0:01:57.5]} 19. Nd6+ {[%clk 0:01:32.3]}
19... Ke7 {[%clk 0:01:52.7]} 20. Nxb7 {[%clk 0:01:28.8]} 20... Qc7 {[%clk
0:01:42.3]} 21. Qc5+ {[%clk 0:01:26]} 21... Kf6 {[%clk 0:01:40]} 22. Rf3+ {[%clk
0:01:24.1]} 22... Kg7 {[%clk 0:01:39.3]} 23. Nd6 {[%clk 0:01:19.6]} 1-0

[Event "*** Titled Tuesday Blitz"]
[Site "Chess.com"]
[Date "2020.10.20"]
[Round "7"]
[White "dennisodessa"]
[Black "Volodar_Murzin"]
[Result "0-1"]
[WhiteElo "2438"]
[BlackElo "2613"]
[TimeControl "180+1"]
[EndTime "11:16:53 PDT"]
[Termination "Volodar_Murzin won by resignation"]

1. c4 {[%clk 0:02:57.9]} 1... Nf6 {[%clk 0:02:58.7]} 2. d4 {[%clk 0:02:55.4]}
2... g6 {[%clk 0:02:58.4]} 3. Nc3 {[%clk 0:02:55]} 3... Bg7 {[%clk 0:02:59]} 4.
e4 {[%clk 0:02:55]} 4... d6 {[%clk 0:02:58.4]} 5. f3 {[%clk 0:02:55.5]} 5... O-O
{[%clk 0:02:57.9]} 6. Be3 {[%clk 0:02:56.1]} 6... c5 {[%clk 0:02:55.8]} 7. dxc5
{[%clk 0:02:56.2]} 7... dxc5 {[%clk 0:02:54.2]} 8. Qxd8 {[%clk 0:02:57.1]} 8...
Rxd8 {[%clk 0:02:53.9]} 9. Bxc5 {[%clk 0:02:58]} 9... Nc6 {[%clk 0:02:53.6]} 10.
Nge2 {[%clk 0:02:58.9]} 10... Nd7 {[%clk 0:02:48.1]} 11. Be3 {[%clk 0:02:58.7]}
11... b6 {[%clk 0:02:47.3]} 12. O-O-O {[%clk 0:02:48.1]} 12... Ba6 {[%clk
0:02:43.1]} 13. Nb5 {[%clk 0:02:48]} 13... Nde5 {[%clk 0:02:35.9]} 14. Nec3
{[%clk 0:02:47.4]} 14... Rxd1+ {[%clk 0:02:34.9]} 15. Kxd1 {[%clk 0:02:47.3]}
15... Rd8+ {[%clk 0:02:35.2]} 16. Kc1 {[%clk 0:02:43.8]} 16... Nb4 {[%clk
0:02:34.6]} 17. a3 {[%clk 0:02:23.1]} 17... Nbd3+ {[%clk 0:02:22.1]} 18. Kc2
{[%clk 0:01:22.8]} 18... Nxc4 {[%clk 0:02:17.4]} 19. Bxb6 {[%clk 0:01:05.6]}
19... Ne1+ {[%clk 0:02:09]} 20. Kb1 {[%clk 0:01:00.2]} 20... Nxb6 {[%clk
0:02:05]} 21. Be2 {[%clk 0:00:55]} 21... Nxg2 {[%clk 0:02:02.5]} 0-1

[Event "*** Titled Tuesday Blitz"]
[Site "Chess.com"]
[Date "2020.10.20"]
[Round "7"]
[White "ChessArchitect64"]
[Black "Kolle05"]
[Result "0-1"]
[WhiteElo "2054"]
[BlackElo "2297"]
[TimeControl "180+1"]
[EndTime "11:17:09 PDT"]
[Termination "Kolle05 won by checkmate"]

1. e4 {[%clk 0:02:59.2]} 1... c5 {[%clk 0:02:59.4]} 2. Nf3 {[%clk 0:02:59]} 2...
d6 {[%clk 0:03:00]} 3. Bb5+ {[%clk 0:02:58.8]} 3... Nd7 {[%clk 0:02:59.3]} 4. c3
{[%clk 0:02:58]} 4... Nf6 {[%clk 0:02:55.5]} 5. e5 {[%clk 0:02:53.6]} 5... dxe5
{[%clk 0:02:54.9]} 6. Nxe5 {[%clk 0:02:53.9]} 6... Qc7 {[%clk 0:02:45.3]} 7.
Nxd7 {[%clk 0:02:53.5]} 7... Bxd7 {[%clk 0:02:44.7]} 8. Bxd7+ {[%clk 0:02:54.2]}
8... Qxd7 {[%clk 0:02:45.6]} 9. O-O {[%clk 0:02:54.4]} 9... e6 {[%clk 0:02:46]}
10. Na3 {[%clk 0:02:51.1]} 10... Be7 {[%clk 0:02:44.2]} 11. Nc2 {[%clk 0:02:51]}
11... O-O {[%clk 0:02:42.4]} 12. d4 {[%clk 0:02:50.9]} 12... Rfd8 {[%clk
0:02:41.3]} 13. Be3 {[%clk 0:02:49.8]} 13... c4 {[%clk 0:02:34.7]} 14. Qe2
{[%clk 0:02:47.8]} 14... b5 {[%clk 0:02:33]} 15. a4 {[%clk 0:02:47.6]} 15... a6
{[%clk 0:02:32.7]} 16. axb5 {[%clk 0:02:47.6]} 16... axb5 {[%clk 0:02:33.6]} 17.
Rxa8 {[%clk 0:02:47.3]} 17... Rxa8 {[%clk 0:02:34.5]} 18. Ra1 {[%clk 0:02:47]}
18... Rxa1+ {[%clk 0:02:33.6]} 19. Nxa1 {[%clk 0:02:46.9]} 19... Nd5 {[%clk
0:02:34.5]} 20. Nc2 {[%clk 0:02:46.5]} 20... h6 {[%clk 0:02:31.9]} 21. Bd2
{[%clk 0:02:42.5]} 21... Qa7 {[%clk 0:02:29.1]} 22. Qd1 {[%clk 0:02:41.6]} 22...
Qa4 {[%clk 0:02:21.6]} 23. Qc1 {[%clk 0:02:40.3]} 23... h5 {[%clk 0:02:15.2]}
24. Ne3 {[%clk 0:02:39.5]} 24... Bg5 {[%clk 0:02:06.8]} 25. Nxd5 {[%clk
0:02:39]} 25... Bxd2 {[%clk 0:02:06.5]} 26. Ne7+ {[%clk 0:02:26.7]} 26... Kf8
{[%clk 0:02:06.1]} 27. Ng6+ {[%clk 0:02:19.2]} 27... fxg6 {[%clk 0:02:05.4]} 28.
Qb1 {[%clk 0:02:16.1]} 28... b4 {[%clk 0:01:46.4]} 29. g3 {[%clk 0:02:15.1]}
29... bxc3 {[%clk 0:01:46.1]} 30. Qxg6 {[%clk 0:02:15]} 30... cxb2 {[%clk
0:01:43.9]} 31. Kg2 {[%clk 0:02:14.3]} 31... Qa1 {[%clk 0:01:39.2]} 32. Qxe6
{[%clk 0:02:14.3]} 32... b1=Q {[%clk 0:01:35.2]} 33. Qc8+ {[%clk 0:02:14.6]}
33... Ke7 {[%clk 0:01:34.9]} 34. Qc7+ {[%clk 0:02:14.8]} 34... Kf6 {[%clk
0:01:33.9]} 35. Qd6+ {[%clk 0:02:14.4]} 35... Kf7 {[%clk 0:01:34.4]} 36. Qd7+
{[%clk 0:02:14.4]} 36... Kg6 {[%clk 0:01:34.7]} 37. Qe6+ {[%clk 0:02:08.5]}
37... Kh7 {[%clk 0:01:31.6]} 38. Qf7 {[%clk 0:02:08.7]} 38... Qe4+ {[%clk
0:01:29.7]} 39. f3 {[%clk 0:02:06.7]} 39... Qe2+ {[%clk 0:01:26.6]} 40. Kh3
{[%clk 0:02:07.1]} 40... Qaf1+ {[%clk 0:01:26.4]} 41. Kh4 {[%clk 0:02:07.6]}
41... Qxh2# {[%clk 0:01:26.5]} 0-1

[Event "*** Titled Tuesday Blitz"]
[Site "Chess.com"]
[Date "2020.10.20"]
[Round "7"]
[White "bakki78"]
[Black "Flawless_Fighter"]
[Result "1-0"]
[WhiteElo "2737"]
[BlackElo "2573"]
[TimeControl "180+1"]
[EndTime "11:17:18 PDT"]
[Termination "bakki78 won by resignation"]

1. e4 {[%clk 0:03:00.9]} 1... c6 {[%clk 0:02:59.9]} 2. d4 {[%clk 0:02:59.3]}
2... d5 {[%clk 0:03:00.8]} 3. e5 {[%clk 0:02:59.7]} 3... Bf5 {[%clk 0:03:00.7]}
4. Be2 {[%clk 0:02:59.2]} 4... e6 {[%clk 0:02:57.3]} 5. Nf3 {[%clk 0:02:59.1]}
5... Ne7 {[%clk 0:02:56.2]} 6. c3 {[%clk 0:02:58.9]} 6... Nd7 {[%clk 0:02:53.4]}
7. O-O {[%clk 0:02:56.9]} 7... Ng6 {[%clk 0:02:53.4]} 8. Ne1 {[%clk 0:02:56.2]}
8... f6 {[%clk 0:02:53.4]} 9. f4 {[%clk 0:02:53.3]} 9... c5 {[%clk 0:02:37.4]}
10. Kh1 {[%clk 0:02:49.4]} 10... cxd4 {[%clk 0:02:33.6]} 11. cxd4 {[%clk
0:02:49]} 11... Rc8 {[%clk 0:02:33.1]} 12. Nc3 {[%clk 0:02:48.7]} 12... Be7
{[%clk 0:02:24.2]} 13. g4 {[%clk 0:02:45.1]} 13... Be4+ {[%clk 0:02:21.8]} 14.
Nxe4 {[%clk 0:02:44.4]} 14... dxe4 {[%clk 0:02:22.7]} 15. f5 {[%clk 0:02:43.8]}
15... Nh4 {[%clk 0:01:51.1]} 16. fxe6 {[%clk 0:02:39.3]} 16... Nb6 {[%clk
0:01:51.3]} 17. Bb5+ {[%clk 0:02:36.3]} 17... Rc6 {[%clk 0:01:48.3]} 18. Bxc6+
{[%clk 0:02:30.8]} 18... bxc6 {[%clk 0:01:49.2]} 19. exf6 {[%clk 0:02:21.6]}
19... Bxf6 {[%clk 0:01:46.6]} 20. g5 {[%clk 0:02:21.9]} 20... Bxd4 {[%clk
0:01:42.1]} 21. Qh5+ {[%clk 0:02:17.1]} 21... Ng6 {[%clk 0:01:42.1]} 22. Ng2
{[%clk 0:02:17.7]} 22... Nd5 {[%clk 0:01:28.8]} 23. Qg4 {[%clk 0:02:15.8]} 23...
Qd6 {[%clk 0:01:11.6]} 24. Qxe4 {[%clk 0:02:12.9]} 24... Be5 {[%clk 0:01:06.2]}
25. Ne3 {[%clk 0:02:01.6]} 25... Nxe3 {[%clk 0:00:55.2]} 26. Bxe3 {[%clk
0:02:00.4]} 26... Qxe6 {[%clk 0:00:55.9]} 27. Rad1 {[%clk 0:01:56.6]} 27... Qh3
{[%clk 0:00:42.3]} 28. Qxc6+ {[%clk 0:01:54.9]} 28... Ke7 {[%clk 0:00:42.4]} 29.
Bc5+ {[%clk 0:01:55.1]} 1-0

[Event "*** Titled Tuesday Blitz"]
[Site "Chess.com"]
[Date "2020.10.20"]
[Round "7"]
[White "Mr_Sinigami"]
[Black "TheCastleHunter"]
[Result "1-0"]
[WhiteElo "2506"]
[BlackElo "2361"]
[TimeControl "180+1"]
[EndTime "11:17:19 PDT"]
[Termination "Mr_Sinigami won by resignation"]

1. d4 {[%clk 0:03:00.9]} 1... Nf6 {[%clk 0:03:00.5]} 2. Nf3 {[%clk 0:03:01]}
2... b6 {[%clk 0:02:59.7]} 3. Bf4 {[%clk 0:03:01.1]} 3... Bb7 {[%clk 0:02:59.9]}
4. e3 {[%clk 0:03:01.3]} 4... c5 {[%clk 0:03:00.1]} 5. h3 {[%clk 0:02:59.7]}
5... e6 {[%clk 0:02:59.9]} 6. Be2 {[%clk 0:02:59.3]} 6... Be7 {[%clk 0:03:00.1]}
7. O-O {[%clk 0:02:59]} 7... O-O {[%clk 0:03:00.8]} 8. a4 {[%clk 0:02:59.6]}
8... d5 {[%clk 0:03:00.9]} 9. a5 {[%clk 0:02:58.8]} 9... bxa5 {[%clk 0:02:59.7]}
10. c3 {[%clk 0:02:57.1]} 10... Nc6 {[%clk 0:02:57.6]} 11. Qa4 {[%clk
0:02:53.6]} 11... Qb6 {[%clk 0:02:57.5]} 12. Ra2 {[%clk 0:02:53]} 12... Ne4
{[%clk 0:02:52.5]} 13. Nbd2 {[%clk 0:02:48.3]} 13... cxd4 {[%clk 0:02:45.4]} 14.
exd4 {[%clk 0:02:47.1]} 14... f5 {[%clk 0:02:38.8]} 15. Nb3 {[%clk 0:02:32.5]}
15... Bd8 {[%clk 0:02:13]} 16. Nc1 {[%clk 0:02:29.9]} 16... Bc7 {[%clk 0:02:09]}
17. Bxc7 {[%clk 0:02:24.6]} 17... Qxc7 {[%clk 0:02:09.8]} 18. Nd3 {[%clk
0:02:25.1]} 18... Ba6 {[%clk 0:02:09.1]} 19. Re1 {[%clk 0:02:24]} 19... Bxd3
{[%clk 0:02:06.6]} 20. Bxd3 {[%clk 0:02:23.9]} 20... Rfc8 {[%clk 0:02:03.4]} 21.
Ba6 {[%clk 0:02:16.9]} 21... Rcb8 {[%clk 0:02:01.3]} 22. Bb5 {[%clk 0:02:17]}
22... Rb6 {[%clk 0:01:55.9]} 23. Bxc6 {[%clk 0:02:13.6]} 23... Rxc6 {[%clk
0:01:55.8]} 24. Qxa5 {[%clk 0:02:07.5]} 24... Rb6 {[%clk 0:01:56]} 25. Ne5
{[%clk 0:02:01.7]} 25... Nxf2 {[%clk 0:01:50.7]} 26. Kxf2 {[%clk 0:01:55.9]}
26... Rxb2+ {[%clk 0:01:48.6]} 27. Kg1 {[%clk 0:01:55.8]} 27... Qb7 {[%clk
0:01:47.7]} 28. Rxb2 {[%clk 0:01:47.6]} 28... Qxb2 {[%clk 0:01:48.6]} 29. Qa6
{[%clk 0:01:47.7]} 29... Re8 {[%clk 0:01:45.9]} 30. Qc6 {[%clk 0:01:45.9]} 30...
Qb8 {[%clk 0:01:43.9]} 31. Nd7 {[%clk 0:01:34.8]} 31... Qc8 {[%clk 0:01:32.2]}
32. Rxe6 {[%clk 0:01:33]} 1-0

[Event "*** Titled Tuesday Blitz"]
[Site "Chess.com"]
[Date "2020.10.20"]
[Round "7"]
[White "Ranindu2003"]
[Black "northridgehawk"]
[Result "1-0"]
[WhiteElo "2554"]
[BlackElo "2239"]
[TimeControl "180+1"]
[EndTime "11:17:21 PDT"]
[Termination "Ranindu2003 won by checkmate"]

1. e4 {[%clk 0:02:58.6]} 1... e5 {[%clk 0:02:59.5]} 2. Nf3 {[%clk 0:02:58.5]}
2... Nc6 {[%clk 0:02:59.6]} 3. Bc4 {[%clk 0:02:59.2]} 3... Nf6 {[%clk
0:02:59.2]} 4. d3 {[%clk 0:02:59.5]} 4... Bc5 {[%clk 0:02:59.3]} 5. c3 {[%clk
0:02:59.7]} 5... d6 {[%clk 0:02:59.2]} 6. h3 {[%clk 0:02:59.2]} 6... a6 {[%clk
0:02:59.4]} 7. Bb3 {[%clk 0:02:59.1]} 7... Ba7 {[%clk 0:02:59.6]} 8. Nbd2 {[%clk
0:02:59.4]} 8... h6 {[%clk 0:02:59.1]} 9. Nf1 {[%clk 0:02:57.7]} 9... O-O {[%clk
0:02:58.4]} 10. Ng3 {[%clk 0:02:57.8]} 10... d5 {[%clk 0:02:58.5]} 11. Qe2
{[%clk 0:02:57.2]} 11... d4 {[%clk 0:02:58.2]} 12. Nh2 {[%clk 0:02:55.4]} 12...
Re8 {[%clk 0:02:57.5]} 13. Ng4 {[%clk 0:02:54.6]} 13... Be6 {[%clk 0:02:53.6]}
14. Qf3 {[%clk 0:02:51.1]} 14... Nxg4 {[%clk 0:02:51.5]} 15. hxg4 {[%clk
0:02:50.6]} 15... Qd7 {[%clk 0:02:35.5]} 16. g5 {[%clk 0:02:14.4]} 16... Bxb3
{[%clk 0:02:31.6]} 17. axb3 {[%clk 0:02:11.7]} 17... dxc3 {[%clk 0:02:28]} 18.
bxc3 {[%clk 0:02:04.5]} 18... Qe6 {[%clk 0:02:26.2]} 19. gxh6 {[%clk 0:01:51]}
19... Qxb3 {[%clk 0:02:23.8]} 20. Bd2 {[%clk 0:01:45.4]} 20... Qb2 {[%clk
0:02:09.6]} 21. Rd1 {[%clk 0:01:41]} 21... Re6 {[%clk 0:01:07.9]} 22. hxg7
{[%clk 0:01:36.9]} 22... Rd8 {[%clk 0:01:02.7]} 23. Nf5 {[%clk 0:01:26]} 23...
f6 {[%clk 0:01:02.4]} 24. Rh8+ {[%clk 0:01:23.1]} 24... Kf7 {[%clk 0:01:01.8]}
25. Qh5# {[%clk 0:01:23.8]} 1-0

[Event "*** Titled Tuesday Blitz"]
[Site "Chess.com"]
[Date "2020.10.20"]
[Round "7"]
[White "Slovak_fighter2000"]
[Black "Shubinkirill2003"]
[Result "0-1"]
[WhiteElo "2421"]
[BlackElo "2658"]
[TimeControl "180+1"]
[EndTime "11:17:46 PDT"]
[Termination "Shubinkirill2003 won by resignation"]

1. d4 {[%clk 0:03:00.9]} 1... e6 {[%clk 0:03:00]} 2. Nf3 {[%clk 0:02:59.8]} 2...
Nf6 {[%clk 0:03:00.4]} 3. Bf4 {[%clk 0:02:58.6]} 3... b6 {[%clk 0:03:00.1]} 4.
e3 {[%clk 0:02:58.6]} 4... Bb7 {[%clk 0:03:00.5]} 5. Nbd2 {[%clk 0:02:59.2]}
5... d6 {[%clk 0:03:00.9]} 6. Bd3 {[%clk 0:02:58.6]} 6... Nbd7 {[%clk
0:03:01.3]} 7. Qe2 {[%clk 0:02:57.7]} 7... h6 {[%clk 0:03:00.8]} 8. Bg3 {[%clk
0:02:54.5]} 8... g5 {[%clk 0:03:01]} 9. h3 {[%clk 0:02:52.1]} 9... Rg8 {[%clk
0:03:00.5]} 10. c3 {[%clk 0:02:50.7]} 10... h5 {[%clk 0:02:59.4]} 11. a4 {[%clk
0:02:48.3]} 11... a6 {[%clk 0:02:57.7]} 12. e4 {[%clk 0:02:40.5]} 12... g4
{[%clk 0:02:56.6]} 13. hxg4 {[%clk 0:02:39.6]} 13... hxg4 {[%clk 0:02:57.5]} 14.
Nh4 {[%clk 0:02:34.5]} 14... Nh5 {[%clk 0:02:57.4]} 15. Qe3 {[%clk 0:02:29.2]}
15... Be7 {[%clk 0:02:32.8]} 16. e5 {[%clk 0:02:12.7]} 16... Bg5 {[%clk
0:02:25.3]} 17. Qe2 {[%clk 0:02:04.9]} 17... dxe5 {[%clk 0:02:22.8]} 18. Ne4
{[%clk 0:01:50.4]} 18... exd4 {[%clk 0:02:15.2]} 19. Nxg5 {[%clk 0:01:44]} 19...
Qxg5 {[%clk 0:02:16.1]} 20. Bxc7 {[%clk 0:01:43.7]} 20... dxc3 {[%clk
0:02:08.2]} 21. bxc3 {[%clk 0:01:39.6]} 21... Qc5 {[%clk 0:02:03.1]} 22. Bg6
{[%clk 0:01:06.8]} 22... Qxc3+ {[%clk 0:01:55]} 23. Kd1 {[%clk 0:01:03.1]} 23...
Qxa1+ {[%clk 0:01:49.6]} 24. Kd2 {[%clk 0:01:02.4]} 24... Qb2+ {[%clk
0:01:40.5]} 25. Bc2 {[%clk 0:01:01]} 25... Rc8 {[%clk 0:01:37.4]} 26. Qc4 {[%clk
0:00:50.8]} 26... b5 {[%clk 0:01:27.2]} 27. axb5 {[%clk 0:00:49.7]} 27... axb5
{[%clk 0:01:27.3]} 0-1

[Event "*** Titled Tuesday Blitz"]
[Site "Chess.com"]
[Date "2020.10.20"]
[Round "7"]
[White "Evachess2006"]
[Black "RamyresCoelho"]
[Result "0-1"]
[WhiteElo "1634"]
[BlackElo "2061"]
[TimeControl "180+1"]
[EndTime "11:17:54 PDT"]
[Termination "RamyresCoelho won by checkmate"]

1. e4 {[%clk 0:03:00.9]} 1... c5 {[%clk 0:03:00.1]} 2. c3 {[%clk 0:02:59.1]}
2... d5 {[%clk 0:02:59.8]} 3. exd5 {[%clk 0:02:58.9]} 3... Qxd5 {[%clk
0:03:00.7]} 4. d4 {[%clk 0:02:58.4]} 4... cxd4 {[%clk 0:03:00.6]} 5. cxd4 {[%clk
0:02:52.9]} 5... e6 {[%clk 0:03:00.5]} 6. Nf3 {[%clk 0:02:46.9]} 6... Nc6 {[%clk
0:03:00.1]} 7. Nc3 {[%clk 0:02:29.7]} 7... Bb4 {[%clk 0:03:00.2]} 8. Bd2 {[%clk
0:02:07.3]} 8... Bxc3 {[%clk 0:02:59.4]} 9. Bxc3 {[%clk 0:02:03.7]} 9... Nf6
{[%clk 0:02:59.5]} 10. Be2 {[%clk 0:01:53.7]} 10... Ne4 {[%clk 0:02:57.5]} 11.
O-O {[%clk 0:01:46.8]} 11... Nxc3 {[%clk 0:02:57.8]} 12. bxc3 {[%clk 0:01:44.8]}
12... O-O {[%clk 0:02:57.4]} 13. c4 {[%clk 0:01:25.2]} 13... Qd6 {[%clk
0:02:54.7]} 14. Qd2 {[%clk 0:01:13.1]} 14... Rd8 {[%clk 0:02:53]} 15. Rfd1
{[%clk 0:01:01.7]} 15... b6 {[%clk 0:02:53]} 16. Rac1 {[%clk 0:00:43.8]} 16...
Bb7 {[%clk 0:02:45.7]} 17. c5 {[%clk 0:00:26.4]} 17... bxc5 {[%clk 0:02:41.5]}
18. dxc5 {[%clk 0:00:24.9]} 18... Qe7 {[%clk 0:02:41.4]} 19. Qb2 {[%clk
0:00:21.9]} 19... g6 {[%clk 0:02:40.1]} 20. Rb1 {[%clk 0:00:20.4]} 20... Rxd1+
{[%clk 0:02:36.3]} 21. Rxd1 {[%clk 0:00:17.2]} 21... Rb8 {[%clk 0:02:20.4]} 22.
Qc3 {[%clk 0:00:17.3]} 22... Nd8 {[%clk 0:02:13.5]} 23. Nd4 {[%clk 0:00:16.3]}
23... Rc8 {[%clk 0:02:08.8]} 24. c6 {[%clk 0:00:11.1]} 24... Nxc6 {[%clk
0:02:06.3]} 25. Qb3 {[%clk 0:00:06.2]} 25... Nxd4 {[%clk 0:02:04.4]} 26. Rxd4
{[%clk 0:00:07.1]} 26... Rc1+ {[%clk 0:02:03.8]} 27. Rd1 {[%clk 0:00:03.2]}
27... Rxd1+ {[%clk 0:02:03.5]} 28. Qxd1 {[%clk 0:00:03]} 28... Qc7 {[%clk
0:02:01.6]} 29. Qa1 {[%clk 0:00:03.2]} 29... Qc6 {[%clk 0:01:59.7]} 30. Qb1
{[%clk 0:00:03.5]} 30... Qxg2# {[%clk 0:01:59.6]} 0-1

[Event "*** Titled Tuesday Blitz"]
[Site "Chess.com"]
[Date "2020.10.20"]
[Round "7"]
[White "dropstoneDP"]
[Black "Savagelittlemole"]
[Result "1-0"]
[WhiteElo "2842"]
[BlackElo "2614"]
[TimeControl "180+1"]
[EndTime "11:18:10 PDT"]
[Termination "dropstoneDP won by checkmate"]

1. e4 {[%clk 0:03:00.9]} 1... c5 {[%clk 0:02:59.3]} 2. Nf3 {[%clk 0:03:00.3]}
2... d6 {[%clk 0:02:59.5]} 3. d4 {[%clk 0:03:00.4]} 3... cxd4 {[%clk 0:03:00.4]}
4. Nxd4 {[%clk 0:03:01.3]} 4... Nf6 {[%clk 0:03:01]} 5. Nc3 {[%clk 0:03:01.9]}
5... a6 {[%clk 0:03:01.7]} 6. Rg1 {[%clk 0:02:57.3]} 6... h5 {[%clk 0:03:01.1]}
7. Bg5 {[%clk 0:02:55.4]} 7... Nbd7 {[%clk 0:02:52.9]} 8. Qd2 {[%clk 0:02:48.4]}
8... Nh7 {[%clk 0:02:36.4]} 9. Be3 {[%clk 0:02:45.1]} 9... Nc5 {[%clk
0:02:35.7]} 10. O-O-O {[%clk 0:02:43.4]} 10... Be6 {[%clk 0:02:31.6]} 11. f4
{[%clk 0:02:17.2]} 11... Nf6 {[%clk 0:02:26.8]} 12. e5 {[%clk 0:02:16.4]} 12...
dxe5 {[%clk 0:02:18.8]} 13. fxe5 {[%clk 0:02:16.7]} 13... Ng4 {[%clk 0:02:15.9]}
14. Bf4 {[%clk 0:01:55.2]} 14... Qa5 {[%clk 0:02:04.4]} 15. h3 {[%clk
0:01:47.8]} 15... Nh6 {[%clk 0:01:52.9]} 16. Nxe6 {[%clk 0:01:47.5]} 16... fxe6
{[%clk 0:01:49]} 17. Be2 {[%clk 0:01:47.1]} 17... Nf5 {[%clk 0:01:45.2]} 18. g4
{[%clk 0:01:43.4]} 18... hxg4 {[%clk 0:01:24.5]} 19. hxg4 {[%clk 0:01:44.3]}
19... Nh6 {[%clk 0:01:24.8]} 20. Rh1 {[%clk 0:01:43.3]} 20... Rd8 {[%clk
0:01:20.9]} 21. Qe3 {[%clk 0:01:31.9]} 21... Rxd1+ {[%clk 0:01:19.3]} 22. Rxd1
{[%clk 0:01:32]} 22... Nf7 {[%clk 0:01:18.5]} 23. Bb5+ {[%clk 0:01:13.8]} 23...
axb5 {[%clk 0:01:06.8]} 24. Qxc5 {[%clk 0:01:14]} 24... Nh6 {[%clk 0:01:03.7]}
25. g5 {[%clk 0:01:07.2]} 25... Nf5 {[%clk 0:01:02.3]} 26. g6 {[%clk 0:01:06.3]}
26... Nd6 {[%clk 0:00:54.5]} 27. exd6 {[%clk 0:00:49.5]} 27... exd6 {[%clk
0:00:55.4]} 28. Qc8+ {[%clk 0:00:47.5]} 28... Ke7 {[%clk 0:00:54.2]} 29. Bg5#
{[%clk 0:00:47.2]} 1-0

[Event "*** Titled Tuesday Blitz"]
[Site "Chess.com"]
[Date "2020.10.20"]
[Round "7"]
[White "AndrewDGreen"]
[Black "Lion-Al-Messi"]
[Result "0-1"]
[WhiteElo "2394"]
[BlackElo "2563"]
[TimeControl "180+1"]
[EndTime "11:18:13 PDT"]
[Termination "Lion-Al-Messi won by resignation"]

1. d4 {[%clk 0:03:00.9]} 1... b6 {[%clk 0:02:58.2]} 2. e4 {[%clk 0:02:59.7]}
2... Bb7 {[%clk 0:02:58.4]} 3. Bd3 {[%clk 0:03:00]} 3... e6 {[%clk 0:02:58.5]}
4. Nf3 {[%clk 0:02:58.7]} 4... c5 {[%clk 0:02:58.6]} 5. c3 {[%clk 0:02:58.4]}
5... Nf6 {[%clk 0:02:58.1]} 6. Qe2 {[%clk 0:02:58.5]} 6... Be7 {[%clk
0:02:57.2]} 7. O-O {[%clk 0:02:57.9]} 7... Nc6 {[%clk 0:02:57.2]} 8. e5 {[%clk
0:02:57.4]} 8... Nd5 {[%clk 0:02:56.6]} 9. dxc5 {[%clk 0:02:57.7]} 9... bxc5
{[%clk 0:02:55.5]} 10. c4 {[%clk 0:02:48.9]} 10... Nc7 {[%clk 0:02:43]} 11. Nc3
{[%clk 0:02:47]} 11... f5 {[%clk 0:02:42.2]} 12. Rd1 {[%clk 0:02:28.1]} 12...
Nd4 {[%clk 0:02:28.4]} 13. Nxd4 {[%clk 0:02:17.7]} 13... cxd4 {[%clk 0:02:29.3]}
14. Nb5 {[%clk 0:02:17.4]} 14... Nxb5 {[%clk 0:02:28.5]} 15. cxb5 {[%clk
0:02:15.9]} 15... Bc5 {[%clk 0:02:27.8]} 16. a3 {[%clk 0:01:55.8]} 16... Qh4
{[%clk 0:02:26.7]} 17. b4 {[%clk 0:01:49.7]} 17... Bb6 {[%clk 0:02:26.8]} 18. a4
{[%clk 0:01:46.2]} 18... f4 {[%clk 0:01:59]} 19. Be4 {[%clk 0:01:34.5]} 19...
Bxe4 {[%clk 0:01:58.3]} 20. Qxe4 {[%clk 0:01:35.4]} 20... O-O {[%clk 0:01:58.7]}
21. a5 {[%clk 0:01:31.9]} 21... Bc7 {[%clk 0:01:58.7]} 22. Rxd4 {[%clk
0:01:27.8]} 22... Rf5 {[%clk 0:01:57.8]} 23. Bxf4 {[%clk 0:01:23.3]} 23... Bxe5
{[%clk 0:01:56.9]} 24. Qxa8+ {[%clk 0:01:15.2]} 24... Rf8 {[%clk 0:01:55.6]} 25.
Bxe5 {[%clk 0:01:13.9]} 25... Qxf2+ {[%clk 0:01:53.6]} 26. Kh1 {[%clk
0:01:08.9]} 26... Rxa8 {[%clk 0:01:54.5]} 27. Rxd7 {[%clk 0:01:00.6]} 27... Qf5
{[%clk 0:01:44.7]} 28. Rxg7+ {[%clk 0:00:49.1]} 28... Kf8 {[%clk 0:01:44.6]} 29.
Re1 {[%clk 0:00:45.3]} 29... Rd8 {[%clk 0:01:20.8]} 30. b6 {[%clk 0:00:36.6]}
30... Qxe5 {[%clk 0:01:14.9]} 0-1